fUSD/lending_fUSD_20241121
["ID","MTS","AMOUNT","RATE_DAILY","PERIOD"]
[342951021,1732217472836,-465.219636,0.000428,14]
[342951022,1732217472846,-653.448917,0.000428,14]
[342951023,1732217472856,-457.257012,0.000428,14]
[342951024,1732217472865,-457.257012,0.000428,14]
[342951025,1732217472875,-151.0,0.000428,14]
[342951026,1732217472884,-990.526881,0.000428,14]
[342951027,1732217472893,-990.526881,0.000428,14]
[342951028,1732217472904,-214.248085,0.000428,14]
[342951029,1732217472913,-214.248085,0.000428,14]
[342951030,1732217472923,-704.7,0.000428,120]
[342951031,1732217472933,-151.0,0.000428,14]
[342951032,1732217472942,-151.0,0.000428,14]
[342951033,1732217472951,-1170.921735,0.000428,14]
[342951034,1732217472960,-1170.921735,0.000428,14]
[342951035,1732217472969,-214.527844,0.000428,14]
[342951036,1732217472979,-214.527844,0.000428,14]
[342951037,1732217472988,-151.0,0.00042818,14]
[342951038,1732217472997,-151.0,0.00042818,14]
[342951039,1732217473006,-584.228945,0.00042818,14]
[342951040,1732217473015,-151.0,0.00042818,14]
[342951041,1732217473024,-584.228945,0.00042818,14]
[342951042,1732217473033,-754.734951,0.00042818,14]
[342951043,1732217473042,-754.734951,0.00042818,14]
[342951044,1732217473052,-151.0,0.00042818,14]
[342951045,1732217473061,-531.392661,0.00042818,14]
[342951046,1732217473202,-531.392661,0.00042818,14]
[342951047,1732217473212,-257.046829,0.00042818,14]
[342951048,1732217473221,-257.046829,0.00042818,14]
[342951049,1732217473230,-210.309271,0.00042818,14]
[342951050,1732217473239,-257.777623,0.00042818,14]
[342951051,1732217473248,-257.777623,0.00042818,14]
[342951052,1732217473257,-151.0,0.00042818,14]
[342951053,1732217473267,-151.0,0.00042818,14]
[342951054,1732217473276,-484.845,0.00042818,14]
[342951055,1732217473285,-484.845,0.00042818,14]
[342951056,1732217473295,-340.256701,0.00042818,14]
[342951057,1732217473304,-340.256701,0.00042818,14]
[342951058,1732217473313,-151.0,0.00042818,14]
[342951059,1732217473322,-151.0,0.00042818,14]
[342951060,1732217473331,-318.982561,0.00042818,14]
[342951061,1732217473341,-318.982561,0.00042818,14]
[342951062,1732217473350,-581.503174,0.00042818,14]
[342951063,1732217473359,-581.503174,0.00042818,14]
[342951064,1732217473369,-151.0,0.00042818,14]
[342951065,1732217473378,-151.0,0.00042818,14]
[342951066,1732217473387,-313.221751,0.00042818,14]
[342951067,1732217473396,-313.221751,0.00042818,14]
[342951068,1732217473409,-395.860156,0.00042818,14]
[342951069,1732217473417,-395.860156,0.00042818,14]
[342951070,1732217473427,-532.540821,0.00042818,14]
[342951071,1732217473436,-522.73797,0.00042818,14]
[342951072,1732217473445,-522.73797,0.00042818,14]
[342951073,1732217473454,-532.540821,0.00042818,14]
[342951074,1732217473464,-307.098401,0.00042818,14]
[342951075,1732217473473,-307.098401,0.00042818,14]
[342951076,1732217473483,-212.117254,0.00042818,7]
[342951077,1732217473492,-151.0,0.00042818,14]
[342951078,1732217473501,-212.117254,0.00042818,7]
[342951079,1732217473510,-570.576073,0.00042818,14]
[342951080,1732217473519,-570.576073,0.00042818,14]
[342951081,1732217473528,-151.0,0.00042818,14]
[342951082,1732217473538,-373.418927,0.00042818,14]
[342951083,1732217473547,-373.418927,0.00042818,14]
[342951084,1732217473556,-151.0,0.00042818,14]
[342951085,1732217473565,-382.551216,0.00042818,14]
[342951086,1732217473575,-151.0,0.00042818,14]
[342951087,1732217473585,-382.551216,0.00042818,14]
[342951088,1732217473595,-224.590002,0.00042818,14]
[342951089,1732217473605,-224.590002,0.00042818,14]
[342951090,1732217473614,-223.142127,0.00042818,14]
[342951091,1732217473624,-223.142127,0.00042818,14]
[342951092,1732217473633,-151.0,0.00042818,14]
[342951093,1732217473643,-417.95,0.00042818,7]
[342951094,1732217473656,-417.95,0.00042818,7]
[342951095,1732217473666,-151.0,0.00042818,14]
[342951096,1732217473676,-415.013785,0.00042818,14]
[342951097,1732217473685,-151.0,0.00042818,14]
[342951098,1732217473695,-415.013785,0.00042818,14]
[342951099,1732217473704,-2324.39490441,0.00042822,15]
[342951100,1732217473713,-703.2,0.00042874,7]
[342951101,1732217473723,-156.01117899,0.00042877,30]
[342951102,1732217473732,-160.27137806,0.00042889,28]
[342951103,1732217473741,-604.87715233,0.000429,120]
[342951104,1732217473751,-600.0,0.000429,15]
[342951105,1732217473760,-500.0,0.00042912,11]
[342951106,1732217473770,-500.0,0.00042912,11]
[342951107,1732217473783,-151.0,0.00042912,14]
[342951108,1732217473794,-151.0,0.00042912,14]
[342951109,1732217473803,-151.0,0.00042912,14]
[342951110,1732217473814,-151.0,0.00042912,14]
[342951111,1732217473824,-685.18,0.00042912,11]
[342951112,1732217473833,-353.394556,0.00042912,14]
[342951113,1732217473843,-500.0,0.00042912,11]
[342951114,1732217473854,-353.394556,0.00042912,14]
[342951115,1732217473863,-621.762382,0.00042912,14]
[342951116,1732217473873,-151.0,0.00042912,14]
[342951117,1732217473882,-1029.183445,0.00042912,14]
[342951118,1732217473892,-621.762382,0.00042912,14]
[342951119,1732217473904,-1029.183445,0.00042912,14]
[342951120,1732217473913,-1256.868843,0.00042912,14]
[342951121,1732217473922,-588.575198,0.00042912,14]
[342951122,1732217473932,-1256.868843,0.00042912,14]
[342951123,1732217473942,-588.575198,0.00042912,14]
[342951124,1732217473952,-167.282727,0.00042912,14]
[342951125,1732217473962,-167.282727,0.00042912,14]
[342951126,1732217473971,-151.0,0.00042912,14]
[342951127,1732217473981,-3088.05,0.00042912,11]
[342951128,1732217473990,-620.25,0.00042912,11]
[342951129,1732217474000,-500.0,0.00042912,11]
[342951130,1732217474009,-1081.59,0.00042912,11]
[342951131,1732217474018,-669.909396,0.00042912,14]
[342951132,1732217474028,-669.909396,0.00042912,14]
[342951133,1732217474037,-548.38,0.00042912,11]
[342951134,1732217474046,-5924.49,0.00042912,2]
[342951135,1732217474056,-741.81,0.00042912,11]
[342951136,1732217474065,-608.57,0.00042912,11]
[342951137,1732217474075,-1091.24,0.00042912,11]
[342951138,1732217474084,-438.81,0.00042919,30]
[342951139,1732217474093,-764.41,0.00042919,30]
[342951140,1732217474102,-764.41,0.00042919,30]
[342951141,1732217474111,-464.58,0.00042919,30]
[342951142,1732217474120,-18324.11538391,0.0004297,11]
[342951143,1732217474129,-6265.6548108,0.00042971,2]
[342951144,1732217474138,-2948.1828333,0.00042971,2]
[342951145,1732217474148,-868.0,0.0004298,30]
[342951146,1732217474161,-868.0,0.0004299,30]
[342951147,1732217474170,-1154.07182175,0.00042999,60]
[342951148,1732217474180,-50000.0,0.00043,23]
[342951149,1732217474189,-50000.0,0.00043,33]
[342951150,1732217474199,-50000.0,0.00043,14]
[342951151,1732217474207,-71529.55533407,0.00043,10]
[342951152,1732217474217,-34071.75201304,0.00043,2]
[342951153,1732217474226,-540.46623105,0.00043,30]
[342951154,1732217474235,-347.29959478,0.00043,60]
[342951155,1732217474244,-599999.8906563,0.00043,30]
[342951156,1732217474253,-500.0,0.00043,30]
[342951157,1732217474262,-1495.21641787,0.00043,30]
[342951158,1732217474271,-151.0,0.00043,14]
[342951159,1732217474281,-151.0,0.00043,14]
[342951160,1732217474290,-151.0,0.00043,14]
[342951161,1732217474299,-299.673936,0.00043,14]
[342951162,1732217474308,-299.673936,0.00043,14]
[342951163,1732217474317,-299.673936,0.00043,14]
[342951164,1732217474326,-299.673928,0.00043,14]
[342951165,1732217474335,-161.735392,0.00043,14]
[342951166,1732217474344,-161.735392,0.00043,14]
[342951167,1732217474353,-161.735392,0.00043,14]
[342951168,1732217474362,-161.735386,0.00043,14]
[342951169,1732217474371,-550.0,0.00043,2]
[342951170,1732217474380,-333.39,0.00043,14]
[342951171,1732217474390,-333.39,0.00043,14]
[342951172,1732217474399,-333.39,0.00043,14]
[342951173,1732217474411,-333.39,0.00043,14]
[342951174,1732217474420,-219.815437,0.00043,14]
[342951175,1732217474429,-219.815433,0.00043,14]
[342951176,1732217474438,-208.901966,0.00043,14]
[342951177,1732217474448,-208.901974,0.00043,14]
[342951178,1732217474457,-151.0,0.00043,14]
[342951179,1732217474466,-151.0,0.00043,14]
[342951180,1732217474475,-151.0,0.00043,14]
[342951181,1732217474484,-374.7389,0.00043,14]
[342951182,1732217474493,-512.26117699,0.00043,120]
[342951183,1732217474502,-374.738899,0.00043,14]
[342951184,1732217474511,-924.82401556,0.00043,120]
[342951185,1732217474520,-262.5162,0.00043,14]
[342951186,1732217474530,-262.516202,0.00043,14]
[342951187,1732217474539,-264.857564,0.00043,14]
[342951188,1732217474548,-151.0,0.00043,14]
[342951189,1732217474557,-264.857564,0.00043,14]
[342951190,1732217474566,-224.244943,0.00043,14]
[342951191,1732217474575,-224.244947,0.00043,14]
[342951192,1732217474584,-390.811008,0.00043,14]
[342951193,1732217474593,-390.811006,0.00043,14]
[342951194,1732217474602,-330.6625,0.00043,14]
[342951195,1732217474611,-330.6625,0.00043,14]
[342951196,1732217474620,-465.0803,0.00043,14]
[342951197,1732217474630,-465.0803,0.00043,14]
[342951198,1732217474639,-919.83258,0.00043,14]
[342951199,1732217474648,-50375.1955843,0.00043,30]
[342951200,1732217474660,-919.832572,0.00043,14]
[342951201,1732217474669,-526.559534,0.00043,14]
[342951202,1732217474679,-526.559538,0.00043,14]
[342951203,1732217474688,-205.058868,0.00043,14]
[342951204,1732217474697,-205.058868,0.00043,14]
[342951205,1732217474706,-553.328889,0.00043,14]
[342951206,1732217474715,-192.18045,0.00043,14]
[342951207,1732217474724,-192.180449,0.00043,14]
[342951208,1732217474734,-166.90533,0.00043,14]
[342951209,1732217474743,-151.0,0.00043,14]
[342951210,1732217474752,-151.0,0.00043,14]
[342951211,1732217474762,-414.786101,0.00043,14]
[342951212,1732217474775,-151.0,0.00043,14]
[342951213,1732217474784,-151.0,0.00043,14]
[342951214,1732217474793,-414.786101,0.00043,14]
[342951215,1732217474802,-988.511237,0.00043,14]
[342951216,1732217474813,-414.786101,0.00043,14]
[342951217,1732217474824,-414.786101,0.00043,14]
[342951218,1732217474834,-988.511237,0.00043,14]
[342951219,1732217474845,-216.682596,0.00043,14]
[342951220,1732217474854,-216.682596,0.00043,14]
[342951221,1732217474863,-216.682596,0.00043,14]
[342951222,1732217474872,-216.682596,0.00043,14]
[342951223,1732217474881,-268.890161,0.00043,14]
[342951224,1732217474890,-268.890161,0.00043,14]
[342951225,1732217474899,-268.890161,0.00043,14]
[342951226,1732217474913,-268.890161,0.00043,14]
[342951227,1732217474922,-409.4,0.00043,14]
[342951228,1732217474931,-409.4,0.00043,14]
[342951229,1732217474940,-409.4,0.00043,14]
[342951230,1732217474951,-409.4,0.00043,14]
[342951231,1732217474960,-151.0,0.00043,14]
[342951232,1732217474970,-151.0,0.00043,14]
[342951233,1732217474979,-151.0,0.00043,14]
[342951234,1732217474988,-151.0,0.00043,14]
[342951235,1732217474997,-156.922027,0.00043,14]
[342951236,1732217475006,-156.922027,0.00043,14]
[342951237,1732217475015,-156.922027,0.00043,14]
[342951238,1732217475025,-156.922027,0.00043,14]
[342951239,1732217475034,-151.0,0.00043,14]
[342951240,1732217475043,-151.0,0.00043,14]
[342951241,1732217475052,-584.228945,0.00043,14]
[342951242,1732217475061,-151.0,0.00043,14]
[342951243,1732217475071,-584.228945,0.00043,14]
[342951244,1732217475079,-754.734951,0.00043,14]
[342951245,1732217475088,-754.734951,0.00043,14]
[342951246,1732217475097,-151.0,0.00043,14]
[342951247,1732217475106,-531.392661,0.00043,14]
[342951248,1732217475115,-531.392661,0.00043,14]
[342951249,1732217475124,-257.046829,0.00043,14]
[342951250,1732217475133,-151.0,0.00043,14]
[342951251,1732217475142,-257.046829,0.00043,14]
[342951252,1732217475153,-151.0,0.00043,14]
[342951253,1732217475162,-355.875565,0.00043,14]
[342951254,1732217475170,-355.875565,0.00043,14]
[342951255,1732217475179,-531.634416,0.00043,14]
[342951256,1732217475188,-531.634416,0.00043,14]
[342951257,1732217475197,-257.777623,0.00043,14]
[342951258,1732217475206,-257.777623,0.00043,14]
[342951259,1732217475214,-610.612746,0.00043,14]
[342951260,1732217475223,-465.219636,0.00043,14]
[342951261,1732217475232,-653.448917,0.00043,14]
[342951262,1732217475241,-465.219636,0.00043,14]
[342951263,1732217475250,-653.448917,0.00043,14]
[342951264,1732217475259,-457.257012,0.00043,14]
[342951265,1732217475268,-457.257012,0.00043,14]
[342951266,1732217475277,-151.0,0.00043,14]
[342951267,1732217475286,-151.0,0.00043,14]
[342951268,1732217475295,-990.526881,0.00043,14]
[342951269,1732217475304,-990.526881,0.00043,14]
[342951270,1732217475313,-151.0,0.00043,14]
[342951271,1732217475322,-214.248085,0.00043,14]
[342951272,1732217475331,-214.248085,0.00043,14]
[342951273,1732217475340,-484.845,0.00043,14]
[342951274,1732217475349,-484.845,0.00043,14]
[342951275,1732217475359,-340.256701,0.00043,14]
[342951276,1732217475368,-340.256701,0.00043,14]
[342951277,1732217475377,-151.0,0.00043,14]
[342951278,1732217475386,-151.0,0.00043,14]
[342951279,1732217475395,-318.982561,0.00043,14]
[342951280,1732217475405,-318.982561,0.00043,14]
[342951281,1732217475415,-581.503174,0.00043,14]
[342951282,1732217475424,-581.503174,0.00043,14]
[342951283,1732217475433,-151.0,0.00043,14]
[342951284,1732217475442,-151.0,0.00043,14]
[342951285,1732217475451,-313.221751,0.00043,14]
[342951286,1732217475461,-313.221751,0.00043,14]
[342951287,1732217475470,-395.860156,0.00043,14]
[342951288,1732217475479,-395.860156,0.00043,14]
[342951289,1732217475488,-522.73797,0.00043,14]
[342951290,1732217475497,-532.540821,0.00043,14]
[342951291,1732217475506,-522.73797,0.00043,14]
[342951292,1732217475515,-532.540821,0.00043,14]
[342951293,1732217475524,-151.0,0.00043,14]
[342951294,1732217475664,-151.0,0.00043,14]
[342951295,1732217475674,-307.098401,0.00043,14]
[342951296,1732217475683,-307.098401,0.00043,14]
[342951297,1732217475692,-151.0,0.00043,14]
[342951298,1732217475702,-212.117254,0.00043,7]
[342951299,1732217475711,-151.0,0.00043,14]
[342951300,1732217475721,-212.117254,0.00043,7]
[342951301,1732217475730,-151.0,0.00043,14]
[342951302,1732217475739,-353.394556,0.00043,14]
[342951303,1732217475749,-570.576073,0.00043,14]
[342951304,1732217475758,-353.394556,0.00043,14]
[342951305,1732217475768,-570.576073,0.00043,14]
[342951306,1732217475782,-621.762382,0.00043,14]
[342951307,1732217475791,-151.0,0.00043,14]
[342951308,1732217475799,-1029.183445,0.00043,14]
[342951309,1732217475810,-621.762382,0.00043,14]
[342951310,1732217475819,-1029.183445,0.00043,14]
[342951311,1732217475828,-1256.868843,0.00043,14]
[342951312,1732217475837,-588.575198,0.00043,14]
[342951313,1732217475847,-1256.868843,0.00043,14]
[342951314,1732217475858,-588.575198,0.00043,14]
[342951315,1732217475867,-38824.02205263,0.00043,3]
[342951316,1732217475878,-167.282727,0.00043,14]
[342951317,1732217475888,-167.282727,0.00043,14]
[342951318,1732217475897,-151.0,0.00043,14]
[342951319,1732217475909,-190.174607,0.00043,14]
[342951320,1732217475919,-373.418927,0.00043,14]
[342951321,1732217475928,-373.418927,0.00043,14]
[342951322,1732217475938,-151.0,0.00043,14]
[342951323,1732217475948,-382.551216,0.00043,14]
[342951324,1732217475958,-194.918461,0.00043,14]
[342951325,1732217475967,-382.551216,0.00043,14]
[342951326,1732217475977,-151.0,0.00043,14]
[342951327,1732217475986,-235.979153,0.00043,14]
[342951328,1732217475996,-150.0,0.00043,120]
[342951329,1732217476005,-163.87215,0.00043,120]
[342951330,1732217476015,-224.590002,0.00043,14]
[342951331,1732217476026,-224.590002,0.00043,14]
[342951332,1732217476035,-1170.921735,0.00043,14]
[342951333,1732217476045,-223.142127,0.00043,14]
[342951334,1732217476054,-1170.921735,0.00043,14]
[342951335,1732217476064,-669.909396,0.00043,14]
[342951336,1732217476073,-223.142127,0.00043,14]
[342951337,1732217476083,-151.0,0.00043,14]
[342951338,1732217476092,-669.909396,0.00043,14]
[342951339,1732217476102,-417.95,0.00043,7]
[342951340,1732217476111,-417.95,0.00043,7]
[342951341,1732217476120,-214.527844,0.00043,14]
[342951342,1732217476129,-214.527844,0.00043,14]
[342951343,1732217476139,-151.0,0.00043,14]
[342951344,1732217476149,-415.013785,0.00043,14]
[342951345,1732217476161,-151.0,0.00043,14]
[342951346,1732217476170,-415.013785,0.00043,14]
[342951347,1732217476180,-703.2,0.00043011,7]
[342951348,1732217476189,-766.72,0.00043013,11]
[342951349,1732217476198,-500.0,0.00043013,11]
[342951350,1732217476207,-1774.58,0.00043013,10]
[342951351,1732217476217,-500.0,0.00043013,11]
[342951352,1732217476226,-1061.2,0.00043013,11]
[342951353,1732217476236,-500.0,0.00043013,11]
[342951354,1732217476246,-678.05,0.00043013,11]
[342951355,1732217476255,-518.39,0.00043013,11]
[342951356,1732217476264,-2438.63,0.00043013,11]
[342951357,1732217476274,-695.85,0.00043013,11]
[342951358,1732217476283,-1019.62,0.00043013,11]
[342951359,1732217476293,-500.0,0.00043013,11]
[342951360,1732217476303,-748.44,0.00043013,11]
[342951361,1732217476312,-500.0,0.00043013,11]
[342951362,1732217476321,-502.27,0.00043013,11]
[342951363,1732217476330,-505.55,0.00043013,11]
[342951364,1732217476339,-1116.54,0.00043013,11]
[342951365,1732217476349,-500.0,0.00043013,11]
[342951366,1732217476359,-500.0,0.00043013,11]
[342951367,1732217476368,-639.79,0.00043013,11]
[342951368,1732217476377,-1143.93,0.00043013,10]
[342951369,1732217476386,-777.56,0.00043013,11]
[342951370,1732217476395,-6107.76,0.00043013,11]
[342951371,1732217476407,-1212.16,0.00043013,11]
[342951372,1732217476416,-155.51896767,0.00043041,120]
[342951373,1732217476425,-277.79,0.00043055,30]
[342951374,1732217476434,-369.02,0.00043056,30]
[342951375,1732217476443,-150.0,0.00043056,30]
[342951376,1732217476452,-362.63,0.00043056,30]
[342951377,1732217476461,-362.63,0.00043056,30]
[342951378,1732217476469,-150.0,0.00043056,30]
[342951379,1732217476478,-433.47,0.00043056,30]
[342951380,1732217476487,-433.47,0.00043056,30]
[342951381,1732217476496,-150.0,0.00043056,30]
[342951382,1732217476505,-150.0,0.00043056,30]
[342951383,1732217476514,-151.56,0.00043056,30]
[342951384,1732217476523,-150.0,0.00043056,30]
[342951385,1732217476532,-380.98,0.00043056,30]
[342951386,1732217476542,-362.63,0.00043056,30]
[342951387,1732217476551,-150.0,0.00043056,30]
[342951388,1732217476560,-433.47,0.00043056,30]
[342951389,1732217476568,-362.63,0.00043056,30]
[342951390,1732217476577,-150.0,0.00043056,30]
[342951391,1732217476586,-150.0,0.00043056,30]
[342951392,1732217476595,-362.63,0.00043056,30]
[342951393,1732217476604,-150.0,0.00043056,30]
[342951394,1732217476613,-433.47,0.00043056,30]
[342951395,1732217476622,-150.0,0.00043056,30]
[342951396,1732217476632,-362.63,0.00043056,30]
[342951397,1732217476641,-150.0,0.00043056,30]
[342951398,1732217476651,-362.63,0.00043056,30]
[342951399,1732217476663,-362.63,0.00043056,30]
[342951400,1732217476673,-362.63,0.00043056,30]
[342951401,1732217476682,-362.63,0.00043056,30]
[342951402,1732217476691,-362.18,0.00043056,30]
[342951403,1732217476700,-725.12,0.00043056,30]
[342951404,1732217476709,-150.0,0.00043075,2]
[342951405,1732217476719,-156.01117899,0.00043123,30]
[342951406,1732217476729,-703.2,0.00043148,7]
[342951407,1732217476738,-273.9,0.00043151,2]
[342951408,1732217476747,-500.0,0.00043159,60]
[342951409,1732217476756,-1200.0,0.00043159,60]
[342951410,1732217476767,-1000.0,0.00043159,60]
[342951411,1732217476778,-3935.8182727,0.00043162,11]
[342951412,1732217476788,-500.0,0.00043186,11]
[342951413,1732217476797,-500.0,0.00043186,11]
[342951414,1732217476807,-685.18,0.00043186,11]
[342951415,1732217476817,-500.0,0.00043186,11]
[342951416,1732217476827,-3088.05,0.00043186,11]
[342951417,1732217476837,-620.25,0.00043186,11]
[342951418,1732217476847,-500.0,0.00043186,11]
[342951419,1732217476857,-1081.59,0.00043186,11]
[342951420,1732217476867,-548.38,0.00043186,11]
[342951421,1732217476877,-5924.49,0.00043186,2]
[342951422,1732217476886,-741.81,0.00043186,11]
[342951423,1732217476896,-608.57,0.00043186,11]
[342951424,1732217476909,-1091.24,0.00043186,11]
[342951425,1732217476919,-318.32,0.00043195,66]
[342951426,1732217476928,-443.89,0.000432,2]
[342951427,1732217476938,-387.98,0.0004321,7]
[342951428,1732217476947,-1000.0,0.0004321,7]
[342951429,1732217476956,-807.07415394,0.00043252,9]
[342951430,1732217476965,-166.82955001,0.00043252,18]
[342951431,1732217476974,-703.2,0.00043285,7]
[342951432,1732217476983,-766.72,0.00043287,11]
[342951433,1732217476993,-500.0,0.00043287,11]
[342951434,1732217477003,-1774.58,0.00043287,10]
[342951435,1732217477012,-500.0,0.00043287,11]
[342951436,1732217477022,-1061.2,0.00043287,11]
[342951437,1732217477031,-244.57482364,0.00043287,11]
[342951438,1732217477041,-678.05,0.00043287,11]
[342951439,1732217477050,-518.39,0.00043287,11]
[342951440,1732217477060,-2438.63,0.00043287,11]
[342951441,1732217477070,-695.85,0.00043287,11]
[342951442,1732217477080,-2731.01,0.00043287,120]
[342951443,1732217477089,-1019.62,0.00043287,11]
[342951444,1732217477098,-500.0,0.00043287,11]
[342951445,1732217477108,-748.44,0.00043287,11]
[342951446,1732217477117,-500.0,0.00043287,11]
[342951447,1732217477127,-502.27,0.00043287,11]
[342951448,1732217477136,-505.55,0.00043287,11]
[342951449,1732217477146,-1116.54,0.00043287,11]
[342951450,1732217477159,-500.0,0.00043287,11]
[342951451,1732217477169,-228.38474329,0.00043287,11]
[342951452,1732217477178,-639.79,0.00043287,11]
[342951453,1732217477187,-1143.93,0.00043287,10]
[342951454,1732217477197,-777.56,0.00043287,11]
[342951455,1732217477206,-6107.76,0.00043287,11]
[342951456,1732217477215,-1212.16,0.00043287,11]
[342951457,1732217477225,-1054.0,0.0004332,30]
[342951458,1732217477234,-1054.0,0.0004332,30]
[342951459,1732217477243,-156.01117899,0.0004337,30]
[342951460,1732217477251,-200.0,0.000434,30]
[342951461,1732217477260,-201.0,0.000434,30]
[342951462,1732217477269,-204.0,0.000434,30]
[342951463,1732217477278,-274.0,0.000434,2]
[342951464,1732217477287,-703.2,0.00043422,7]
[342951465,1732217477297,-407.02108137,0.0004346,11]
[342951466,1732217477306,-500.0,0.0004346,11]
[342951467,1732217477315,-685.18,0.0004346,11]
[342951468,1732217477323,-500.0,0.0004346,11]
[342951469,1732217477333,-3088.05,0.0004346,11]
[342951470,1732217477342,-620.25,0.0004346,11]
[342951471,1732217477351,-500.0,0.0004346,11]
[342951472,1732217477360,-1081.59,0.0004346,11]
[342951473,1732217477369,-548.38,0.0004346,11]
[342951474,1732217477379,-5924.49,0.0004346,2]
[342951475,1732217477388,-741.81,0.0004346,11]
[342951476,1732217477397,-608.57,0.0004346,11]
[342951477,1732217477411,-1091.24,0.0004346,11]
[342951478,1732217477420,-185.38,0.000435,120]
[342951479,1732217477429,-15304.40268391,0.000435,2]
[342951480,1732217477438,-203.0,0.0004355,30]
[342951481,1732217477448,-703.2,0.00043559,7]
[342951482,1732217477457,-1154.07182175,0.0004356,60]
[342951483,1732217477466,-151.0,0.00043561,14]
[342951484,1732217477475,-766.72,0.00043561,11]
[342951485,1732217477484,-593.46790845,0.00043561,11]
[342951486,1732217477493,-1774.58,0.00043561,10]
[342951487,1732217477502,-500.0,0.00043561,11]
[342951488,1732217477512,-1061.2,0.00043561,11]
[342951489,1732217477520,-678.05,0.00043561,11]
[342951490,1732217477530,-518.39,0.00043561,11]
[342951491,1732217477539,-2438.63,0.00043561,11]
[342951492,1732217477548,-695.85,0.00043561,11]
[342951493,1732217477558,-1019.62,0.00043561,11]
[342951494,1732217477567,-344.38833788,0.00043561,11]
[342951495,1732217477576,-748.44,0.00043561,11]
[342951496,1732217477585,-500.0,0.00043561,11]
[342951497,1732217477594,-502.27,0.00043561,11]
[342951498,1732217477603,-505.55,0.00043561,11]
[342951499,1732217477612,-1116.54,0.00043561,11]
[342951500,1732217477621,-500.0,0.00043561,11]
[342951501,1732217477631,-639.79,0.00043561,11]
[342951502,1732217477640,-1143.93,0.00043561,10]
[342951503,1732217477649,-777.56,0.00043561,11]
[342951504,1732217477662,-6107.76,0.00043561,11]
[342951505,1732217477671,-1212.16,0.00043561,11]
[342951506,1732217477680,-629.0,0.00043566,2]
[342951507,1732217477689,-1927.0,0.00043566,2]
[342951508,1732217477698,-815.0,0.00043566,2]
[342951509,1732217477707,-1260.0,0.00043566,2]
[342951510,1732217477716,-919.0,0.00043566,2]
[342951511,1732217477725,-1093.0,0.00043566,2]
[342951512,1732217477734,-1256.0,0.00043566,2]
[342951513,1732217477743,-564.0,0.00043566,2]
[342951514,1732217477752,-150.0,0.00043566,2]
[342951515,1732217477762,-632.0,0.00043566,2]
[342951516,1732217477772,-839.61,0.00043658,120]
[342951517,1732217477784,-88441.52,0.00043677,7]
[342951518,1732217477794,-703.2,0.00043696,7]
[342951519,1732217477803,-10951.35876585,0.000437,120]
[342951520,1732217477812,-500.0,0.00043707,60]